Cogmind - Beta 15 X1 @@@ ROGUE MODE // 2025.01.01 @ 22:28:20 Player: IzRey Result: Destroyed by H-88 Terminator with KE Penetrator Performance ------------- Evolutions (8) 4000 Regions Visited (17) 3400 Robots Destroyed (193) 965 Value Destroyed (8240) 8240 Prototype IDs (41) 820 Alien Tech Used (0) 0 Bonus (5300) 5300 TOTAL SCORE: 22725 Bonus ------- Met Data Miner 300 Met Warlord at Base 500 MAIN.C Attacked Warlord 500 Met Warlord at Research 2000 Invited to Help at Command 2000 Cogmind --------- Core Integrity 0/1450 Matter 295/300 Energy 71/100 System Corruption 6% Temperature Cool (0) Movement Hovering (147) Ox1 Location -2/Research Parts ------- > --- POWER (2) -------- (None) > --- PROPULSION (6) --- Combat Antigrav System Combat Antigrav System > --- UTILITY (12) ----- High-capacity Storage Unit Spectral Analyzer Advanced Target Analyzer Experimental Core Analyzer Improved Armor Integrity Analyzer Hacking Suite Makeshift System Shield > --- WEAPON (3) ------- Plasma Lance > --- INVENTORY (20) --- Advanced Trap Scanner Advanced Sensor Array Advanced Signal Interpreter Advanced Salvage Targeting Computer Advanced Salvage Targeting Computer Advanced Target Analyzer Advanced Thermal Shield Stealth Drone Bay Heavy Shock Bomb Launcher Gamma Bomb Array Phasing Sabre Peak State ------------ > --- POWER ------------ Quantum Reactor Light Quantum Reactor > --- PROPULSION ------- Heavy Shield Leg Heavy Shield Leg Heavy Shield Leg > --- UTILITY ---------- High-capacity Storage Unit Spectral Analyzer Advanced Signal Interpreter Advanced Target Analyzer Experimental Core Analyzer Improved Armor Integrity Analyzer Microactuators Advanced Force Booster Hacking Suite Improved Hacking Suite Makeshift System Shield Advanced System Shield > --- WEAPON ----------- Phasing Sabre Nanosword Plasma Lance > --- INVENTORY -------- Light Antimatter Reactor Light Quantum Reactor Biometal Leg Biometal Leg Experimental Myomer Leg Centrium Leg Advanced Trap Scanner Advanced Sensor Array Advanced Signal Interpreter Advanced Salvage Targeting Computer Advanced Salvage Targeting Computer Advanced Target Analyzer Advanced Thermal Shield Stealth Drone Bay Heavy Shock Bomb Launcher Gamma Bomb Array Phasing Sabre Phasing Sabre [Rating: 178] Favorites ----------- Power Light Antimatter Reactor Engine Improved Deuterium Engine Power Core Neutrino Core Reactor Light Antimatter Reactor Propulsion Myomer Leg Treads Heavy Siege Treads Leg Myomer Leg Wheel Armored Huge Wheel Hover Unit Combat Antigrav System Flight Unit Impulse Thruster Array Utility High-capacity Storage Unit Device Advanced Sensor Array Storage High-capacity Storage Unit Processor Advanced Signal Interpreter Hackware Hacking Suite Protection Hardened Light Armor Plating Weapon Great Axe Energy Gun EM Pulse Gun Energy Cannon Heavy Plasma Cannon Ballistic Gun Light Assault Rifle Ballistic Cannon Mass Driver Launcher Heavy Shock Bomb Launcher Special Weapon Welding Torch Impact Weapon Thunder Hammer Slashing Weapon Great Axe Piercing Weapon Lance Special Melee Weapon Improved Datajack Build | -11 -10 -9 -8 -7 -6 -6 -6 -6 -5 -5 -5 -5 -5 -4 -4 -3 -2 ------- Run | Yrd Mat Mat Mat Fac Fac Low Low Dat Pro Fac Upp Upp War Pro Fac Res Res Slots Evolved 16 | . . 2 2 2 2 . . . . 2 . . . . 2 2 2 Power 1 | . . . . . . . . . . . . . . . . 1 . Propulsion 4 | . . . 1 1 . . . . . . . . . . 1 1 . Utility 10 | . . 2 1 1 2 . . . . 2 . . . . . . 2 Weapon 1 | . . . . . . . . . . . . . . . 1 . . Parts Attached 250 | 8 10 5 5 41 24 1 4 1 7 28 2 3 13 2 25 40 31 Power 34 | 1 2 . 1 5 3 . . 1 1 2 . . 1 . 2 11 4 Engine 12 | 1 2 . 1 3 3 . . 1 1 . . . . . . . . Core 4 | . . . . 2 . . . . . 2 . . . . . . . Reactor 18 | . . . . . . . . . . . . . 1 . 2 11 4 Propulsion 87 | 2 2 1 3 11 13 1 . . 4 7 1 . 6 2 7 16 11 Treads 1 | . . . . . . . . . . . . . . . . 1 . Leg 75 | . . . 3 10 13 1 . . 4 6 1 . 6 2 7 15 7 Wheel 7 | 2 2 1 . 1 . . . . . 1 . . . . . . . Hover 2 | . . . . . . . . . . . . . . . . . 2 Flight 2 | . . . . . . . . . . . . . . . . . 2 Utility 92 | 2 3 3 1 19 6 . 2 . 2 13 1 2 5 . 14 9 10 Device 50 | 1 . 1 . 11 3 . 2 . 1 9 . 1 3 . 8 7 3 Storage 7 | 1 2 . . 2 . . . . . . . . . . 1 . 1 Processor 23 | . 1 1 . 5 2 . . . 1 3 . 1 2 . 3 2 2 Hackware 10 | . . . 1 1 1 . . . . 1 . . . . 2 . 4 Protection 2 | . . 1 . . . . . . . . 1 . . . . . . Artifact . | . . . . . . . . . . . . . . . . . . Weapon 37 | 3 3 1 . 6 2 . 2 . . 6 . 1 1 . 2 4 6 Energy Gun 1 | 1 . . . . . . . . . . . . . . . . . Energy Cannon 4 | . . . . . . . . . . 2 . 1 . . . . 1 Ballistic Gun 6 | 2 3 . . . . . . . . 1 . . . . . . . Ballistic Cannon 1 | . . . . . . . . . . 1 . . . . . . . Launcher 1 | . . . . . . . . . . . . . . . 1 . . Special Weapon 1 | . . . . . . . . . . 1 . . . . . . . Impact Weapon 2 | . . . . . 1 . . . . 1 . . . . . . . Slashing Weapon 12 | . . 1 . 5 1 . 2 . . . . . . . . 1 2 Piercing Weapon 8 | . . . . . . . . . . . . . 1 . 1 3 3 Special Melee Weapon 1 | . . . . 1 . . . . . . . . . . . . . Unidentified Prototypes 13 | . . . . 2 1 . . . . 1 . . 5 . 1 1 2 Parts Lost 128 | . 8 6 . 17 10 . 5 . 11 11 2 1 . . 3 27 27 Power 20 | . 2 1 . 2 1 . . . 2 1 . . . . 1 5 5 Propulsion 52 | . 2 3 . 9 5 . . . 4 5 1 . . . . 13 10 Utility 36 | . 1 . . 3 4 . 3 . 4 2 1 . . . 2 7 9 Weapon 20 | . 3 2 . 3 . . 2 . 1 3 . 1 . . . 2 3 Highest Loss Streak 23 | . 4 6 . 7 7 . 5 . 4 7 2 1 . . 1 9 23 To Critical Strikes 1 | . . . . . 1 . . . . . . . . . . . . Average Backups 16 | 1 7 6 4 16 16 19 16 16 13 12 19 19 19 20 19 18 15 Power 1 | . 1 1 . 1 1 2 2 2 1 . 1 1 1 2 1 1 1 Propulsion 4 | 1 4 3 2 2 5 8 8 9 7 2 4 5 4 5 5 5 2 Utility 7 | . . 1 2 9 7 7 5 5 4 4 7 6 6 7 7 8 8 Weapon 3 | . 1 . . 2 1 2 . . . 4 7 7 6 6 4 2 2 Tool/Special . | . . . . . . . . . . . . . . . . . . Unused Backups 55 | . 1 4 2 8 9 1 . . . 4 3 . 1 2 1 5 14 Power 4 | . 1 1 . . 1 . . . . . . . . . . 1 . Propulsion 17 | . . 2 2 4 2 . . . . 1 . . . 1 . . 5 Utility 25 | . . 1 . 4 6 1 . . . 1 2 . . 1 1 1 7 Weapon 9 | . . . . . . . . . . 2 1 . 1 . . 3 2 Tool/Special . | . . . . . . . . . . . . . . . . . . Average Slot Usage (%) 96 | . 98 66 53 98 99 100 99 100 92 93 90 89 94 100 99 98 92 Engine 3 | . 12 6 1 6 6 6 6 6 6 . . . . . . . . Reactor 2 | . . . . . . . . . . . . . . 5 4 8 7 Leg 22 | . . . 7 29 25 26 26 26 25 17 10 11 13 23 25 27 22 Wheel 2 | . 27 12 . . . . . . . 2 5 5 4 . . . . Device 12 | . 9 2 9 13 12 13 20 26 14 11 13 10 10 11 14 12 11 Storage 5 | . 14 6 . 6 6 6 6 6 6 5 5 5 5 5 5 4 4 Processor 21 | . 4 22 18 15 23 26 18 13 18 27 23 28 30 35 25 24 18 Hackware 7 | . . . 8 7 8 6 6 6 6 10 11 11 9 5 6 4 15 Energy Cannon 1 | . . . . . . . . . . 8 11 6 6 10 . . . Ballistic Gun 1 | . 26 10 . . . . . . . . . . . . . . . Slashing Weapon 6 | . . . 9 14 12 13 12 13 11 . . . . . . 1 4 Piercing Weapon 2 | . . . . . . . . . . . . . 4 . 9 9 5 Peak Build Rating 178 | 7 9 13 24 52 64 66 63 61 61 81 81 76 100 102 132 148 178 Average Rating 84 | 5 7 9 14 47 59 63 61 61 56 69 74 71 79 96 125 140 161 On Entrance 59 | . 7 9 7 24 44 63 63 61 61 46 81 72 75 96 100 131 126 Naked Turns . | . . . . . . . . . . . . . . . . . . Heaviest Build 102 | 14 25 30 10 68 70 61 67 70 70 80 85 82 76 73 79 102 98 Greatest Support 180 | 32 32 26 60 80 86 80 76 76 76 80 28 28 95 90 125 154 180 Greatest Overweight (x) 3 | . 1 2 . 2 2 . . . . 2 3 2 2 . . . 1 Average Overweight (x) . | . . . . . . . . . . . 2 2 1 . . . . Largest Inventory Capacity 20 | 8 15 15 5 20 20 20 20 20 20 20 20 20 20 20 20 20 20 Average Capacity 19 | 6 9 11 5 18 20 20 20 20 20 20 20 20 20 20 20 20 20 Most Carried 20 | 6 10 8 5 20 20 20 20 17 17 20 20 20 20 20 20 20 20 Average Carried 17 | 2 7 6 4 16 18 20 17 17 14 13 19 19 19 19 19 18 17 Final Capacity 20 | 8 15 5 5 20 20 20 20 20 20 20 20 20 20 20 20 20 20 Final Carried 20 | 6 8 5 4 16 20 20 17 17 10 20 20 20 20 20 20 18 14 Class Distribution -------------------- 34% | Gladiator 17% | Scavenger-Gladiator 14% | Hacker-Gladiator 14% | Hacker-Mutant 8% | Mutant 3% | Scavenger-Skirmisher Dominant Class ---------------- Mutant | -10/Materials Mutant | -9/Materials Mutant | -8/Materials Gladiator | -7/Factory Gladiator | -6/Factory Gladiator | -6/Lower Caves Gladiator | -6/Lower Caves Gladiator | -6/Data Miner Scavenger-Gladiator | -5/Proximity Caves Hacker-Mutant | -5/Factory Hacker-Mutant | -5/Upper Caves Hacker-Mutant | -5/Upper Caves Hacker-Mutant | -5/Warlord Scavenger-Skirmisher | -4/Proximity Caves Scavenger-Gladiator | -4/Factory Scavenger-Gladiator | -3/Research Hacker-Gladiator | -2/Research Resources | -11 -10 -9 -8 -7 -6 -6 -6 -6 -5 -5 -5 -5 -5 -4 -4 -3 -2 ----------- Run | Yrd Mat Mat Mat Fac Fac Low Low Dat Pro Fac Upp Upp War Pro Fac Res Res Matter Collected 4666 | 193 421 48 48 736 397 98 90 . 70 531 50 85 180 160 530 643 386 Remotely . | . . . . . . . . . . . . . . . . . . Salvage Created 9388 | 69 722 100 72 2146 878 33 147 . 112 926 147 431 . 199 904 2282 220 Parts 542 | 6 39 7 5 123 58 3 13 . 5 55 4 17 . 7 58 134 8 Haulers Intercepted 4 | . 1 . 1 2 . . . . . . . . . . . . . Recyclers Shooed 2 | . 2 . . . . . . . . . . . . . . . . Parts Field Recycled . | . . . . . . . . . . . . . . . . . . Retrieved Matter . | . . . . . . . . . . . . . . . . . . Parts Self-Destructed 36 | . . . . . . 1 11 . 4 . 1 14 . 5 . . . Prevented . | . . . . . . . . . . . . . . . . . . Kills | -11 -10 -9 -8 -7 -6 -6 -6 -6 -5 -5 -5 -5 -5 -4 -4 -3 -2 ------- Run | Yrd Mat Mat Mat Fac Fac Low Low Dat Pro Fac Upp Upp War Pro Fac Res Res Combat Hostiles Destroyed 137 | . 13 2 . 28 15 . 5 . 2 15 2 9 . 4 13 26 3 Melee 90 | . . . . 28 15 . 5 . 2 . . . . . 11 26 3 Guns 14 | . 12 2 . . . . . . . . . . . . . . . Cannons 25 | . . . . . . . . . . 12 2 9 . 2 . . . AOE 3 | . 1 . . . . . . . . 1 . . . . 1 . . Classes Destroyed 17 | 2 5 1 1 5 . . . . . . 1 . . 1 . . 1 Worker 10 | . . . . 6 . . . . . 1 . . . . 2 1 . Builder 14 | . . . . 4 2 . . . . 3 . . . . 1 4 . Tunneler 4 | 1 . . . . 2 . . . . 1 . . . . . . . Hauler 4 | . 1 . 1 2 . . . . . . . . . . . . . Recycler 9 | 1 2 . . 4 . . . . . . . . . . . 2 . Mechanic 4 | . 1 . . 1 . . . . . 1 . . . . . 1 . Operator 5 | . . . 1 2 . . . . . . . . . . . . 2 Drone 2 | . . . . . . . . . . . . . . 2 . . . Watcher 6 | . 1 . . . 3 . . . . . . . . . 1 1 . Swarmer 20 | . 3 . . 1 5 . 4 . . . . 4 . . . 3 . Grunt 39 | . 10 1 . 12 5 . . . . 2 . 5 . . 4 . . Duelist 3 | . . . . 1 . . . . . 1 . . . . . . 1 Sentry 17 | . . 1 . 6 2 . . . . 1 1 . . . 1 5 . Hunter 14 | . . . . 1 . . 1 . . 4 . . . 2 . 6 . Programmer 39 | . . . . 7 3 . . . 2 7 . . . . 8 12 . Striker 2 | . . . . . . . . . . . . . . . . . 2 Decomposer 2 | . . . . . . 2 . . . . . . . . . . . Mutant 1 | . . . . . . . . . . . 1 . . . . . . Best Kill Streak 8 | 2 5 2 2 8 5 . 5 . 1 3 1 4 . 2 7 6 1 Combat Bots Only 6 | . 4 2 . 4 5 . 5 . 1 2 1 4 . 2 4 6 1 Max Kills in Single Turn 2 | 1 2 1 1 1 1 1 1 . 1 2 1 1 . 1 1 1 1 Gunslinging 1 | . 1 . . . . . . . . . . . . . . . . Exploded 1 | . 1 . . . . . . . . 1 . . . . 1 . . Melee 1 | . . . . 1 1 . 1 . 1 . . . . . 1 1 1 Uniques/NPCs Destroyed . | . . . . . . . . . . . . . . . . . . Combat | -11 -10 -9 -8 -7 -6 -6 -6 -6 -5 -5 -5 -5 -5 -4 -4 -3 -2 -------- Run | Yrd Mat Mat Mat Fac Fac Low Low Dat Pro Fac Upp Upp War Pro Fac Res Res Hostile Shots Fired 1923 | . 97 51 36 345 152 . 26 . 151 193 22 20 . 32 99 350 349 Missed 663 | . 22 20 24 123 54 . 14 . 54 61 4 2 . 11 25 136 113 Damage Taken 24542 | . 894 469 178 2956 1612 . 548 . 1767 2405 267 301 . 306 1598 4651 6590 Core 4603 | . 229 114 147 580 337 . 73 . 350 325 52 . . 12 370 543 1471 Absorbed by Shields . | . . . . . . . . . . . . . . . . . . Regen/Repaired (Parts) 802 | . . . . . 38 . . . . . . . 233 . 531 . . Core Remaining (%) 51 | 100 8 71 73 17 . . . . 10 . . . . 61 67 58 . Volleys Fired 212 | 2 76 13 . . . . . . . 73 14 18 . 13 2 . 1 Largest 2 | 2 2 2 . . . . . . . 2 2 2 . 2 1 . 1 Hottest 180 | 60 60 40 . . . . . . . 180 180 180 . 180 46 . 113 Shots Fired 366 | 4 152 25 . . . . . . . 112 18 28 . 23 2 1 1 Gun 193 | 4 152 25 . . . . . . . 12 . . . . . . . Cannon 170 | . . . . . . . . . . 100 18 28 . 23 . . 1 Launcher 3 | . . . . . . . . . . . . . . . 2 1 . Special . | . . . . . . . . . . . . . . . . . . Kinetic 209 | 2 148 25 . . . . . . . 34 . . . . . . . Thermal 148 | . . . . . . . . . . 78 18 28 . 23 . . 1 Explosive . | . . . . . . . . . . . . . . . . . . Electromagnetic 9 | 2 4 . . . . . . . . . . . . . 2 1 . Robot Hit Streak 17 | 3 12 3 . . . . . . . 17 11 15 . 10 . 2 . Robot Miss Streak 5 | . 4 5 . . . . . . . 2 . 1 . 3 . . . Penetration Max 1 | . . . . . . . . . . 1 . . . . . . . Secondary Targets 4 | . 4 . . . . . . . . . . . . . . . . Max Gunslinging Chain 1 | . 1 . . . . . . . . . . . . . . . . Shots Hit Robots 595 | 3 104 13 3 118 52 2 5 . 11 68 10 17 . 13 46 105 25 Core Hits 264 | 2 42 5 2 50 23 . 5 . 3 30 5 12 . 5 25 48 7 Critical Kills 7 | 1 1 1 . . . . . . . 2 . . . 1 1 . . Critical Parts Destroyed 4 | . . . . . . . . . . 2 . . . . 2 . . Critical Strikes 75 | 1 1 1 . 25 9 . . . 1 5 . . . 1 6 22 3 Meltdown 3 | . . . . . . . . . . 2 . . . 1 . . . Destroy 5 | 1 1 1 . . . . . . . 2 . . . . . . . Blast 1 | . . . . . . . . . . 1 . . . . . . . Smash 3 | . . . . . . . . . . . . . . . 3 . . Sever 46 | . . . . 25 9 . . . 1 . . . . . . 9 2 Impale 17 | . . . . . . . . . . . . . . . 3 13 1 Melee Attacks 853 | . . . 3 260 121 11 20 1 30 2 . . 4 8 162 183 48 Impact 32 | . . . . . 1 . . . . . . . . . 27 4 . Slashing 528 | . . . 3 260 120 11 20 1 30 2 . . . . . 52 29 Piercing 293 | . . . . . . . . . . . . . 4 8 135 127 19 Sneak Attacks 47 | . . . 2 18 7 2 . . . . . . . . 5 12 1 Combat Hostiles . | . . . . . . . . . . . . . . . . . . Follow-up Attacks 105 | . . . . 29 12 . . . . . . . . . 17 39 8 Damage Inflicted 23183 | 65 1106 121 128 5265 2352 181 213 . 397 2475 318 542 . 409 2635 5689 1287 Guns 1392 | 36 1074 110 . . . . . . . 172 . . . . . . . Cannons 3441 | . . . . . . . . . . 2172 318 542 . 409 . . . Explosions 385 | 29 32 . . . . . . . . 107 . . . . 188 29 . Melee 17930 | . . . 128 5265 2352 181 213 . 397 . . . . . 2447 5660 1287 Ramming 35 | . . 11 . . . . . . . 24 . . . . . . . Kinetic 1822 | 10 1052 110 . . . . . . . 650 . . . . . . . Thermal 3024 | 29 32 . . . . . . . . 1694 318 542 . 409 . . . Explosive 107 | . . . . . . . . . . 107 . . . . . . . Electromagnetic 265 | 26 22 . . . . . . . . . . . . . 188 29 . Impact 718 | . . . . . . . . . . . . . . . 718 . . Slashing 11587 | . . . 128 5265 2352 181 213 . 397 . . . . . . 2213 838 Piercing 5625 | . . . . . . . . . . . . . . . 1729 3447 449 Highest Corruption 25 | . . 3 . 3 . . 13 8 15 9 9 . . . 4 25 12 Average Corruption 8 | . . 2 . 1 . . 8 8 13 4 5 . . . 1 18 6 Corruption Purged 31 | . . . . 4 . . 5 . . . 9 . . . 7 . 6 Corruption Blocked . | . . . . . . . . . . . . . . . . . . Effects 207 | . . 4 . 8 . . 9 4 21 22 . . . . 23 75 41 Message Errors 59 | . . 1 . 3 . . 2 1 5 5 . . . . 8 18 16 Matter Fused 44 | . . 2 . 2 . . 5 . 4 2 . . . . 6 13 10 Heat Flow Errors 19 | . . . . . . . 1 1 3 3 . . . . 3 5 3 Energy Discharges 32 | . . 1 . 1 . . 1 2 1 5 . . . . 2 13 6 Parts Rejected 4 | . . . . . . . . . 2 . . . . . . 1 1 Parts Fused 1 | . . . . . . . . . . 1 . . . . . . . Data Loss (minor) 25 | . . . . 2 . . . . 5 2 . . . . 2 11 3 Data Loss (major) 11 | . . . . . . . . . 1 1 . . . . 2 6 1 Misfires 2 | . . . . . . . . . . 1 . . . . . 1 . Alerts 3 | . . . . . . . . . . 1 . . . . . 2 . Misdirections 6 | . . . . . . . . . . . . . . . . 5 1 Weapon Failures 1 | . . . . . . . . . . 1 . . . . . . . Overload Shots . | . . . . . . . . . . . . . . . . . . Overflow Damage 2227 | . . . 7 540 196 150 . . 22 65 . . . . 482 578 187 Projectiles 85 | . . . . . . . . . . 51 . . . . 34 . . Explosions 1 | . . . . . . . . . . . . . . . 1 . . Melee 2141 | . . . 7 540 196 150 . . 22 14 . . . . 447 578 187 Knockbacks 10 | . . . . . . . . . . 5 . . . . 5 . . Impact 4 | . . . . . . . . . . . . . . . 4 . . Kinetic 4 | . . . . . . . . . . 4 . . . . . . . Secondary 2 | . . . . . . . . . . 1 . . . . 1 . . Self-Inflicted Damage 121 | . 40 5 . . . . . . . 76 . . . . . . . Shots 2 | . 1 . . . . . . . . 1 . . . . . . . Rammed 1 | . . 1 . . . . . . . . . . . . . . . Targets Rammed 2 | . . 1 . . . . . . . 1 . . . . . . . Kicked 1 | . . . . . . . . . . 1 . . . . . . . Crushed . | . . . . . . . . . . . . . . . . . . Highest Temperature 363 | 20 36 20 23 20 . . 218 136 231 363 90 210 . 174 250 149 259 Average Temperature 70 | 15 10 7 23 8 . . 114 75 95 107 31 78 . 60 98 66 112 Received Heat Transfer 2875 | . 477 150 99 882 174 . . . 381 117 72 54 . . 226 54 189 Effects 2 | . . . . . . . . . . 2 . . . . . . . Energy Bleed 1 | . . . . . . . . . . 1 . . . . . . . Short Circuit 1 | . . . . . . . . . . 1 . . . . . . . Siege Activations . | . . . . . . . . . . . . . . . . . . Martial Activations . | . . . . . . . . . . . . . . . . . . Shielding Activations . | . . . . . . . . . . . . . . . . . . Robots Disrupted . | . . . . . . . . . . . . . . . . . . Combat Hostiles . | . . . . . . . . . . . . . . . . . . Robots Corrupted 3 | . . . . . . . . . . 1 . . . . 2 . . Combat Hostiles 2 | . . . . . . . . . . 1 . . . . 1 . . Parts Fried 2 | . . . . . . . . . . 1 . . . . 1 . . Impact Corruptions 15 | . . . . . . . . . . 2 . . . . 13 . . Robots Melted 4 | . . . . . . . . . . 2 . . . 2 . . . Combat Hostiles 3 | . . . . . . . . . . 1 . . . 2 . . . Parts Melted 21 | . 2 . . . . . . . 1 12 1 . . 5 . . . Heat Transferred 4550 | 50 50 . . . . . . . . 2450 500 850 . 650 . . . Parts Sabotaged . | . . . . . . . . . . . . . . . . . . Parts Stolen . | . . . . . . . . . . . . . . . . . . Parts Stripped . | . . . . . . . . . . . . . . . . . . Power Chain Reactions 2 | 1 1 . . . . . . . . . . . . . . . . Alert | -11 -10 -9 -8 -7 -6 -6 -6 -6 -5 -5 -5 -5 -5 -4 -4 -3 -2 ------- Run | Yrd Mat Mat Mat Fac Fac Low Low Dat Pro Fac Upp Upp War Pro Fac Res Res Maximum Alert Level 2 | . 1 . . 1 1 . . . . 1 . . . . 2 1 . Low Security (%) 82 | 100 95 100 100 72 91 . . . . 91 . . . . 63 80 100 Level 1 17 | . 4 . . 27 8 . . . . 8 . . . . 31 19 . Level 2 . | . . . . . . . . . . . . . . . 5 . . Level 3 . | . . . . . . . . . . . . . . . . . . Level 4 . | . . . . . . . . . . . . . . . . . . Level 5 . | . . . . . . . . . . . . . . . . . . High Security . | . . . . . . . . . . . . . . . . . . Max Security . | . . . . . . . . . . . . . . . . . . Peak Influence 452 | 10 207 103 54 368 241 . . . . 221 . . . . 452 331 178 Initial 450 | . . 81 22 24 179 . . . . 51 . . . . 450 66 178 Average 99 | 1 53 49 28 122 141 . . . . 41 . . . . 156 92 29 Influence Increases 6089 | 10 550 147 72 1120 642 . 165 . 230 653 20 235 . 60 991 970 224 Destroy 0b10 Robot/C 2680 | . 260 40 . 560 300 . 100 . 40 300 20 180 . 40 260 520 60 Destroy 0b10 Robot/NC 290 | 10 25 . 10 95 35 . . . . 30 . . . 10 20 45 10 Destroy Leader 710 | . 74 10 2 184 96 . 20 . 10 70 . 10 . 10 62 152 10 Successful Hack 337 | . 22 7 . 96 100 . . . . 66 . . . . 22 24 . Select Force Hacks 30 | . 30 . . . . . . . . . . . . . . . . Disable Machine 60 | . . . . 15 15 . . . . 30 . . . . . . . Destroy Structure 467 | . 4 . . 80 36 . . . . 112 . . . . 132 64 39 Advance Influence 450 | . . . . . . . . . . . . . . . 450 . . Partial Spotted 45 | . . 15 . . . . . . . 30 . . . . . . . Lose Combat Pursuer 1020 | . 135 75 60 90 60 . 45 . 180 15 . 45 . . 45 165 105 Influence Decreases 5257 | 10 355 173 40 778 714 66 138 . 147 483 158 151 . 60 864 718 402 Time Decay 3994 | 10 275 113 40 484 614 66 138 . 107 362 138 141 . 60 598 490 358 Lost Part 863 | . 80 60 . 170 100 . . . 40 81 20 10 . . 30 228 44 Purge Threat 400 | . . . . 124 . . . . . 40 . . . . 236 . . Squads Dispatched 46 | . 4 . 1 12 6 . . . . 7 . . . . 8 8 . Investigation 9 | . 4 . . 1 1 . . . . . . . . . 3 . . Extermination 25 | . . . . 7 4 . . . . 4 . . . . 5 5 . Reinforcement 11 | . . . . 4 1 . . . . 3 . . . . . 3 . Assault . | . . . . . . . . . . . . . . . . . . Garrison 1 | . . . 1 . . . . . . . . . . . . . . Intercept . | . . . . . . . . . . . . . . . . . . Searches Triggered . | . . . . . . . . . . . . . . . . . . Construction Impeded 2 | . . . . 1 . . . . . 1 . . . . . . . Haulers Reinforced 3 | . . . . . 1 . . . . . . . . . . 2 . Active Scanning Responses . | . . . . . . . . . . . . . . . . . . Cargo Convoy Interrupts 1 | . . . . . . . . . . . . . . . . 1 . Stealth | -11 -10 -9 -8 -7 -6 -6 -6 -6 -5 -5 -5 -5 -5 -4 -4 -3 -2 --------- Run | Yrd Mat Mat Mat Fac Fac Low Low Dat Pro Fac Upp Upp War Pro Fac Res Res Distress Signals 18 | . 1 . 3 1 1 . . . . . . . . . . 1 11 Communications Jammed . | . . . . . . . . . . . . . . . . . . Distress Signals . | . . . . . . . . . . . . . . . . . . Times Spotted 275 | . 24 13 17 40 28 . 8 . 15 19 2 11 . 5 19 48 26 Peak Tracking Total 9 | . 6 5 9 4 5 . 5 . 8 3 1 5 . 2 4 5 9 Tactical Retreats 42 | . 5 2 3 5 4 . 1 . 6 1 . 2 . . 2 8 3 Traps | -11 -10 -9 -8 -7 -6 -6 -6 -6 -5 -5 -5 -5 -5 -4 -4 -3 -2 ------- Run | Yrd Mat Mat Mat Fac Fac Low Low Dat Pro Fac Upp Upp War Pro Fac Res Res Traps Triggered 11 | . 1 . . 5 . . . . . 2 . . . . 1 2 . Indirectly . | . . . . . . . . . . . . . . . . . . Trap Hack Attempts 3 | . . . . 3 . . . . . . . . . . . . . Triggered . | . . . . . . . . . . . . . . . . . . Disarmed . | . . . . . . . . . . . . . . . . . . Reprogrammed 1 | . . . . 1 . . . . . . . . . . . . . Reused . | . . . . . . . . . . . . . . . . . . Traps Extracted . | . . . . . . . . . . . . . . . . . . Installed . | . . . . . . . . . . . . . . . . . . Triggered . | . . . . . . . . . . . . . . . . . . Machines | -11 -10 -9 -8 -7 -6 -6 -6 -6 -5 -5 -5 -5 -5 -4 -4 -3 -2 ---------- Run | Yrd Mat Mat Mat Fac Fac Low Low Dat Pro Fac Upp Upp War Pro Fac Res Res Machines Disabled 7 | . . . . 1 1 1 . 1 . 2 1 . . . . . . Max in Single Turn 1 | . . . . 1 1 1 . 1 . 1 1 . . . . . . Garrison Access 2 | . . . . 1 . . . . . . . . . . . 1 . Machines Repaired . | . . . . . . . . . . . . . . . . . . Machines Dismantled . | . . . . . . . . . . . . . . . . . . Machines Sabotaged . | . . . . . . . . . . . . . . . . . . Overloaded Fab Kills . | . . . . . . . . . . . . . . . . . . Hacking | -11 -10 -9 -8 -7 -6 -6 -6 -6 -5 -5 -5 -5 -5 -4 -4 -3 -2 --------- Run | Yrd Mat Mat Mat Fac Fac Low Low Dat Pro Fac Upp Upp War Pro Fac Res Res Machines Accessed 75 | . 7 2 2 15 14 . . 3 . 7 1 . 2 . 17 4 1 Terminals 43 | . 6 2 2 10 7 . . . . 5 . . . . 8 3 . Fabricators 8 | . . . . 2 2 . . . . 1 . . . . 3 . . Repair Stations 6 | . . . . 1 2 . . . . . . . . . 3 . . Recycling Units 4 | . 1 . . . 2 . . . . 1 . . . . . . . Scanalyzers 3 | . . . . 1 . . . . . . . . . . 2 . . Garrison Access 5 | . . . . 1 1 . . . . . . . . . 1 1 1 Total Hacks 249 | . 20 7 4 56 40 . . 24 . 21 2 . 3 . 58 10 4 Successful 131 | . 9 2 . 33 17 . . 24 . 10 2 . 3 . 28 3 . Failed 118 | . 11 5 4 23 23 . . . . 11 . . . . 30 7 4 Catastrophic 28 | . 4 . 2 7 3 . . . . 3 . . . . 5 2 2 Database Lockouts . | . . . . . . . . . . . . . . . . . . Manual 70 | . 14 5 1 18 11 1 . . . 6 . . 1 . 12 1 . Terminals 138 | . 17 7 4 31 24 . . . . 16 . . . . 30 9 . Fabricators 16 | . . . . 2 5 . . . . 1 . . . . 8 . . Repair Stations 19 | . . . . 3 5 . . . . . . . . . 11 . . Recycling Units 11 | . 3 . . . 4 . . . . 4 . . . . . . . Scanalyzers 26 | . . . . 19 . . . . . . . . . . 7 . . Garrison Access 10 | . . . . 1 2 . . . . . . . . . 2 1 4 Terminal Hacks 69 | . 4 1 . 8 8 . . 24 . 8 2 . 3 . 9 2 . Record 16 | . . . . . . . . 11 . . 2 . 2 . 1 . . Part Schematic 12 | . 1 . . . 1 . . 10 . . . . . . . . . Prototype ID Bank 9 | . . . . 3 . . . 3 . 1 . . . . 1 1 . Open Door 1 | . . . . . . . . . . . . . 1 . . . . Branch Access Points 2 | . . . . 1 . . . . . 1 . . . . . . . Emergency Access Points 1 | . . . . . 1 . . . . . . . . . . . . Terminal Index 5 | . 1 . . 1 1 . . . . 1 . . . . 1 . . Fabricator Index 1 | . . . . . . . . . . 1 . . . . . . . Unreport Threat 5 | . . . . 1 . . . . . 1 . . . . 3 . . Locate Traps 10 | . 1 . . 2 2 . . . . 2 . . . . 2 1 . Dispatch Records 1 | . . . . . 1 . . . . . . . . . . . . Registered Components 5 | . 1 1 . . 1 . . . . 1 . . . . 1 . . Registered Prototypes 1 | . . . . . 1 . . . . . . . . . . . . Fabricator Hacks 7 | . . . . 2 3 . . . . . . . . . 2 . . Network Status 3 | . . . . 2 1 . . . . . . . . . . . . Load Schematic 3 | . . . . . 1 . . . . . . . . . 2 . . Build 1 | . . . . . 1 . . . . . . . . . . . . Repair Station Hacks 14 | . . . . 1 3 . . . . . . . . . 10 . . Scan Component 8 | . . . . 1 2 . . . . . . . . . 5 . . Repair 6 | . . . . . 1 . . . . . . . . . 5 . . Recycling Unit Hacks 3 | . 1 . . . 1 . . . . 1 . . . . . . . Retrieve Components 3 | . 1 . . . 1 . . . . 1 . . . . . . . Scanalyzer 21 | . . . . 17 . . . . . . . . . . 4 . . Insert Component 10 | . . . . 8 . . . . . . . . . . 2 . . Analyze 11 | . . . . 9 . . . . . . . . . . 2 . . Garrison Access Hacks 2 | . . . . 1 . . . . . . . . . . . 1 . Seal Access 2 | . . . . 1 . . . . . . . . . . . 1 . Unauthorized Hacks 15 | . 4 1 . 4 2 . . . . 1 . . . . 3 . . Terminals 14 | . 3 1 . 4 2 . . . . 1 . . . . 3 . . Botnet 14 | . 3 1 . 4 2 . . . . 1 . . . . 3 . . Fabricators . | . . . . . . . . . . . . . . . . . . Repair Stations . | . . . . . . . . . . . . . . . . . . Recycling Units 1 | . 1 . . . . . . . . . . . . . . . . Tunnel 1 | . 1 . . . . . . . . . . . . . . . . Scanalyzers . | . . . . . . . . . . . . . . . . . . Garrison Access . | . . . . . . . . . . . . . . . . . . Data Cores Recovered 1 | . . . 1 . . . . . . . . . . . . . . Used . | . . . . . . . . . . . . . . . . . . Hacking Detections 63 | . 5 2 2 12 14 . . . . 7 . . . . 17 3 1 Full Trace Events 8 | . 2 1 . 1 1 . . . . . . . . . 3 . . Feedback Events 1 | . . 1 . . . . . . . . . . . . . . . Corruption 1 | . . 1 . . . . . . . . . . . . . . . Feedback Blocked . | . . . . . . . . . . . . . . . . . . Robot Schematics Acquired . | . . . . . . . . . . . . . . . . . . Robots Built . | . . . . . . . . . . . . . . . . . . Authchips . | . . . . . . . . . . . . . . . . . . Time . | . . . . . . . . . . . . . . . . . . Total Robot Build Rating . | . . . . . . . . . . . . . . . . . . Part Schematics Acquired 22 | . 1 . . 8 1 . . 10 . . . . . . 2 . . Parts Built 2 | . . . . . 2 . . . . . . . . . . . . Authchips . | . . . . . . . . . . . . . . . . . . Time 42 | . . . . . 42 . . . . . . . . . . . . Total Part Build Rating 8 | . . . . . 8 . . . . . . . . . . . . Parts Repaired 6 | . . . . . 1 . . . . . . . . . 5 . . Time 409 | . . . . . 25 . . . . . . . . . 384 . . Parts Recycled . | . . . . . . . . . . . . . . . . . . Recycled Matter . | . . . . . . . . . . . . . . . . . . Retrieved Matter . | . . . . . . . . . . . . . . . . . . Retrieved Components 7 | . 4 . . . 1 . . . . 2 . . . . . . . Parts Scanalyzed 10 | . . . . 8 . . . . . . . . . . 2 . . Part Schematics Acquired 10 | . . . . 8 . . . . . . . . . . 2 . . Parts Damaged 1 | . . . . . . . . . . . . . . . 1 . . Bothacking | -11 -10 -9 -8 -7 -6 -6 -6 -6 -5 -5 -5 -5 -5 -4 -4 -3 -2 ------------ Run | Yrd Mat Mat Mat Fac Fac Low Low Dat Pro Fac Upp Upp War Pro Fac Res Res Used RIF Installer . | . . . . . . . . . . . . . . . . . . Robots Hacked . | . . . . . . . . . . . . . . . . . . Non-combat . | . . . . . . . . . . . . . . . . . . Combat . | . . . . . . . . . . . . . . . . . . Robot Hacks Applied . | . . . . . . . . . . . . . . . . . . Relay Couplers Released . | . . . . . . . . . . . . . . . . . . Fabnet Peak Effective % . | . . . . . . . . . . . . . . . . . . Robots Rewired . | . . . . . . . . . . . . . . . . . . Allies Hacked . | . . . . . . . . . . . . . . . . . . Hacks Repelled . | . . . . . . . . . . . . . . . . . . Allies | -11 -10 -9 -8 -7 -6 -6 -6 -6 -5 -5 -5 -5 -5 -4 -4 -3 -2 -------- Run | Yrd Mat Mat Mat Fac Fac Low Low Dat Pro Fac Upp Upp War Pro Fac Res Res Total Allies 1 | . . . . . . . . . 1 . . . . . . . . Largest Group 1 | . . . . . . . . . 1 . . . . . . . . Highest-Rated Group 96 | . . . . . . . . . 96 . . . . . . . . Highest-Rated Ally 96 | . . . . . . . . . 96 . . . . . . . . Total Orders . | . . . . . . . . . . . . . . . . . . Ally Attacks 4 | . . . . . . . . . 4 . . . . . . . . Total Damage 200 | . . . . . . . . . 200 . . . . . . . . Kills . | . . . . . . . . . . . . . . . . . . Allies Corrupted . | . . . . . . . . . . . . . . . . . . Allies Melted 3 | . . . . . . . . . . . . . 3 . . . . Intel | -11 -10 -9 -8 -7 -6 -6 -6 -6 -5 -5 -5 -5 -5 -4 -4 -3 -2 ------- Run | Yrd Mat Mat Mat Fac Fac Low Low Dat Pro Fac Upp Upp War Pro Fac Res Res Active Infowar (turns) 20870 | 3 868 249 98 3973 2026 974 716 119 164 1534 804 553 1146 636 2523 2426 2058 Optics 15551 | . 263 249 98 3806 2026 974 276 . . . . . 216 636 2523 2426 2058 Sensors 11611 | . . . . . 1045 960 276 . . 967 731 487 1145 591 2347 1111 1951 Structural 6034 | . . 50 98 2824 1248 581 716 119 164 234 . . . . . . . Traps 207 | . . . . . . . . . . . . . . . 207 . . Seismic 608 | 3 605 . . . . . . . . . . . . . . . . Decoding 5634 | . . . . . . . . . . 1534 804 553 1146 636 961 . . Machine Analysis 768 | . . 249 98 421 . . . . . . . . . . . . . Jamming 19 | . . . . 19 . . . . . . . . . . . . . Robot Analysis Total . | . . . . . . . . . . . . . . . . . . Derelict Logs Recovered 7 | . . . . . . 2 1 . . . 1 1 . 2 . . . Drone Launches . | . . . . . . . . . . . . . . . . . . Drone Recoveries . | . . . . . . . . . . . . . . . . . . Decoded 0b10 Intel 34 | . . . . . . . . . . 21 . . . . 13 . . Traps 17 | . . . . . . . . . . 13 . . . . 4 . . Emergency Access 16 | . . . . . . . . . . 7 . . . . 9 . . Garrisons 1 | . . . . . . . . . . 1 . . . . . . . Exploration | -11 -10 -9 -8 -7 -6 -6 -6 -6 -5 -5 -5 -5 -5 -4 -4 -3 -2 ------------- Run | Yrd Mat Mat Mat Fac Fac Low Low Dat Pro Fac Upp Upp War Pro Fac Res Res Turns Passed 21402 | 70 871 249 98 4047 2026 974 716 119 542 1544 804 553 1146 636 2523 2426 2058 Spaces Moved 14220 | 47 643 271 127 2574 1292 648 517 93 351 886 576 371 846 403 1523 1532 1520 Core 282 | 1 . 174 107 . . . . . . . . . . . . . . Treads . | . . . . . . . . . . . . . . . . . . Legs 11033 | . . . 20 2545 1283 648 517 93 351 458 . . 145 403 1523 1532 1515 Wheels 2900 | 46 643 97 . 29 9 . . . . 428 576 371 701 . . . . Hover 5 | . . . . . . . . . . . . . . . . . 5 Flight . | . . . . . . . . . . . . . . . . . . Fastest Speed 50 | 50 80 50 50 120 120 125 125 125 125 127 130 130 110 120 120 120 105 Average Speed 120 | 98 93 68 62 127 124 125 125 125 126 128 130 130 127 120 120 120 113 Slowest Speed 196 | 100 115 115 130 196 195 127 125 125 127 195 145 130 190 120 120 124 190 Overloaded Moves . | . . . . . . . . . . . . . . . . . . Propulsion Burnouts . | . . . . . . . . . . . . . . . . . . Robots Hopped . | . . . . . . . . . . . . . . . . . . Cave-ins Triggered 2 | . . . . . . . 1 . . . . . . . . . 1 Exploration Rate (%) 50 | 3 79 31 20 77 37 80 66 75 53 19 73 37 88 63 33 31 43 Regions Visited 17 Branch Regions 8 Pre-discovered Areas 4 | . 1 . . . . 1 . 1 . . 1 . . . . . . Known Exits Taken 12 | . . . . . 1 1 1 1 1 1 1 1 1 1 1 1 . Unknown Exits Taken 5 | 1 1 1 1 1 . . . . . . . . . . . . . Scrap Searched 9 | . . . . . . 2 2 . . . 2 2 . 1 . . . Spaces Dug 281 | . . . . 78 35 5 7 . 12 18 6 7 . 8 64 30 11 Terrain Destroyed 341 | 3 3 . . 78 35 5 7 . 12 58 7 11 . 17 64 30 11 Melee 251 | . . . . 78 35 5 7 . 12 2 . . . 8 64 30 10 Projectile 62 | . . . . . . . . . . 34 7 11 . 9 . . 1 AOE 28 | 3 3 . . . . . . . . 22 . . . . . . . Terrain Rammed . | . . . . . . . . . . . . . . . . . . Walls Destroyed . | . . . . . . . . . . . . . . . . . . Machines Disabled . | . . . . . . . . . . . . . . . . . . Actions | -11 -10 -9 -8 -7 -6 -6 -6 -6 -5 -5 -5 -5 -5 -4 -4 -3 -2 --------- Run | Yrd Mat Mat Mat Fac Fac Low Low Dat Pro Fac Upp Upp War Pro Fac Res Res Total 17214 | 62 779 312 138 3056 1576 791 562 94 412 1172 613 414 904 515 2060 1947 1807 Wait 1378 | . 35 16 . 134 91 127 21 . 20 135 10 12 16 73 333 188 167 Move 14203 | 46 642 270 126 2573 1291 647 516 92 350 885 575 370 845 402 1522 1531 1520 Hop . | . . . . . . . . . . . . . . . . . . Pick Up 187 | 6 11 3 2 40 25 1 3 . 1 24 3 3 4 1 19 27 14 Fast Attach 95 | 7 . 4 4 13 6 . . . 2 13 2 . 7 . 8 9 20 Attach 120 | . 8 2 1 15 10 . 6 . 9 13 1 2 2 . 11 25 15 Detach 33 | . . . . 6 3 . . . 1 7 2 . 5 . 5 2 2 Swap 196 | 1 3 . . 50 30 5 . 1 . 7 3 7 10 15 32 26 6 Drop 152 | . 4 3 2 22 23 2 . . . 12 3 2 11 3 21 21 23 Fire 212 | 2 76 13 . . . . . . . 73 14 18 . 13 2 . 1 Melee 633 | . . . 3 200 97 9 16 1 29 2 . . 4 8 107 118 39 Ram 1 | . . 1 . . . . . . . . . . . . . . . Kick 1 | . . . . . . . . . . 1 . . . . . . . Crush . | . . . . . . . . . . . . . . . . . . Escape Stasis . | . . . . . . . . . . . . . . . . . . Rewire . | . . . . . . . . . . . . . . . . . . Trap 3 | . . . . 3 . . . . . . . . . . . . . Miscellaneous . | . . . . . . . . . . . . . . . . . . Route ------- -11/Scrapyard -10/Materials (discovered 2 exits: *Mat / [*Min]) -9/Materials -8/Materials -7/Factory (discovered 6 exits: *Fac x3 / *Sto / *Low x2) -6/Factory (discovered 3 exits: *Fac / *Low x2) -6/Lower Caves -6/Lower Caves (discovered 2 exits: Fac / *Dat) -6/Data Miner -5/Proximity Caves -5/Factory (discovered 4 exits: *Fac x2 / *Upp x2) -5/Upper Caves -5/Upper Caves -5/Warlord -4/Proximity Caves -4/Factory (discovered 2 exits: *Res / *Upp) -3/Research (discovered 3 exits: *Res / [*Arm] / *Tes) -2/Research (discovered 1 exit: *Qua) History --------- Turn | Location | Event 20 | -11/Scrapyard | Discovered new exit (range 15) 71 | -11/Scrapyard | Entered Materials 311 | -10/Materials | Build established: Mutant 455 | -10/Materials | Discovered new exit (range 11) 621 | -10/Materials | Discovered new exit (range 16) 710 | -10/Materials | Lost 3 parts (2n1u) 763 | -10/Materials | Core integrity fell below 50% 786 | -10/Materials | Core integrity fell below 20% 802 | -10/Materials | Lost 4 parts (2p2w) 942 | -10/Materials | Entered another Materials area 942 | -9/Materials | Evolved 2 slots: Utility x2 1129 | -9/Materials | Lost 6 parts (1p3n2w) 1188 | -9/Materials | Discovered new exit (range 3) 1191 | -9/Materials | Entered another Materials area 1191 | -8/Materials | Evolved 2 slots: Propulsion x1, Utility x1 1251 | -8/Materials | Discovered new exit (range 18) 1274 | -8/Materials | Garrison activated, responded to threat 1289 | -8/Materials | Entered Factory 1289 | -7/Factory | Evolved 2 slots: Propulsion x1, Utility x1 1763 | -7/Factory | Discovered new exit (range 8) 1977 | -7/Factory | Build established: Gladiator 2180 | -7/Factory | Discovered new exit (range 6) 2644 | -7/Factory | Allied Derelicts emerged from ambush trap array 2682 | -7/Factory | Identified exit to Storage 2682 | -7/Factory | Identified exit to Lower Caves 3220 | -7/Factory | Discovered new exit (range 5) 4610 | -7/Factory | Core integrity fell below 50% 4687 | -7/Factory | Lost 7 parts (1p2n2u2w) 4953 | -7/Factory | Discovered new exit (range 9) 5294 | -7/Factory | Core integrity fell below 20% 5320 | -7/Factory | Lost 4 parts (3n1u) 5336 | -7/Factory | Entered another Factory area 5336 | -6/Factory | Evolved 2 slots: Utility x2 5654 | -6/Factory | Build established: Hacker-Gladiator 5766 | -6/Factory | Fabricated Great Axe? 6192 | -6/Factory | Lost 7 parts (1p3n3u) 6219 | -6/Factory | Discovered new exit (range 20) 6302 | -6/Factory | Identified exit to Factory 6424 | -6/Factory | Build established: Gladiator 6565 | -6/Factory | Repaired Imp. Reaction Control System? 6671 | -6/Factory | Discovered new exit (range 16) 6689 | -6/Factory | Identified exit to Lower Caves 7347 | -6/Factory | Discovered exit to Lower Caves (range 5) 7362 | -6/Factory | Entered Lower Caves 7447 | -6/Lower Caves | Learned 4 Factory zone layouts 7993 | -6/Lower Caves | Acquired the password to a Derelict Tinkerer's latest research 8329 | -6/Lower Caves | Discovered new exit (range 6) 8334 | -6/Lower Caves | Identified exit to Lower Caves 8336 | -6/Lower Caves | Entered another Lower Caves area 8612 | -6/Lower Caves | Crushed by falling debris 8612 | -6/Lower Caves | System corruption reached 10% 8643 | -6/Lower Caves | Lost 5 parts (3u2w) 9042 | -6/Lower Caves | Discovered new exit (range 3) 9046 | -6/Lower Caves | Identified exit to Data Miner 9052 | -6/Lower Caves | Entered Data Miner 9052 | -6/Data Miner | Discovered new exit (range 6) 9057 | -6/Data Miner | Identified exit to Proximity Caves 9076 | -6/Data Miner | Met Data Miner 9113 | -6/Data Miner | Learned location of Section 7 (-2) 9113 | -6/Data Miner | Acquired the access code to Warlord's prototype stash 9128 | -6/Data Miner | Received God Mode back door access code from Data Miner 9171 | -6/Data Miner | Entered Proximity Caves 9319 | -5/Proximity Caves | Core integrity fell below 50% 9379 | -5/Proximity Caves | Lost 4 parts (2n2u) 9431 | -5/Proximity Caves | Spotted B-75 Beast 9605 | -5/Proximity Caves | Build established: Scavenger-Gladiator 9613 | -5/Proximity Caves | Attracted the attention of an 0b10 checkpoint 9633 | -5/Proximity Caves | Core integrity fell below 20% 9664 | -5/Proximity Caves | Lost 3 parts (1n2u) 9698 | -5/Proximity Caves | Discovered exit to Factory (range 12) 9713 | -5/Proximity Caves | Entered Factory 9713 | -5/Factory | Evolved 2 slots: Utility x2 9714 | -5/Factory | Identified exit to Factory 9934 | -5/Factory | Lost 7 parts (1p3n3w) 10251 | -5/Factory | Build established: Hacker-Mutant 10532 | -5/Factory | Identified exit to Upper Caves 10564 | -5/Factory | Discovered exit to Factory (range 12) 11257 | -5/Factory | Entered Upper Caves 11422 | -5/Upper Caves | Attracted the attention of an 0b10 checkpoint 11543 | -5/Upper Caves | Learned location of Warlord (-5) 11579 | -5/Upper Caves | Entered a destroyed Warlord outpost 11899 | -5/Upper Caves | Encountered a Warlord checkpoint 11927 | -5/Upper Caves | Discovered new exit (range 6) 11932 | -5/Upper Caves | Identified exit to Upper Caves 11993 | -5/Upper Caves | Attacked by a delusional Derelict stockpiling parts 12061 | -5/Upper Caves | Entered another Upper Caves area 12260 | -5/Upper Caves | Identified exit to Warlord 12614 | -5/Upper Caves | Entered Warlord 12903 | -5/Warlord | Visited the Vortex Lab 12917 | -5/Warlord | Warlord's base attacked by MAIN.C 13267 | -5/Warlord | Warlord forces counterattacked 13267 | -5/Warlord | Met Warlord 13525 | -5/Warlord | Opened Warlord's prototype stash 13530 | -5/Warlord | Found Prototype Processor 13530 | -5/Warlord | Identified Exp. Targeting Computer 13544 | -5/Warlord | Found Prototype Processor 13544 | -5/Warlord | Identified Spectral Analyzer 13592 | -5/Warlord | Warlord base infiltrated, sounded retreat 13697 | -5/Warlord | Found Prototype Processor 13731 | -5/Warlord | Spotted Striker 13739 | -5/Warlord | Discovered new exit (range 17) 13757 | -5/Warlord | Identified exit to Proximity Caves 13760 | -5/Warlord | Entered Proximity Caves 13785 | -4/Proximity Caves | Learned 4 Research zone layouts 13841 | -4/Proximity Caves | Spotter reported a threat 13862 | -4/Proximity Caves | Spotter reported a threat 14103 | -4/Proximity Caves | Spotter reported a threat 14161 | -4/Proximity Caves | Build established: Scavenger-Skirmisher 14255 | -4/Proximity Caves | Learned Research garrison access intel 14372 | -4/Proximity Caves | Discovered exit to Factory (range 10) 14396 | -4/Proximity Caves | Entered Factory 14396 | -4/Factory | Evolved 2 slots: Propulsion x1, Weapon x1 14411 | -4/Factory | Identified Exp. Core Analyzer 14707 | -4/Factory | Build established: Scavenger-Gladiator 15050 | -4/Factory | Repaired Broken Enh. Biometal Leg 15067 | -4/Factory | Build established: Hacker-Gladiator 15617 | -4/Factory | Discovered new exit (range 7) 15672 | -4/Factory | Identified exit to Upper Caves 16233 | -4/Factory | Repaired Myomer Leg 16301 | -4/Factory | Repaired Myomer Leg 16363 | -4/Factory | Build established: Scavenger-Gladiator 16369 | -4/Factory | Repaired Myomer Leg 16631 | -4/Factory | Repaired Myomer Leg 16896 | -4/Factory | Discovered new exit (range 5) 16898 | -4/Factory | Identified exit to Research 16919 | -4/Factory | Entered Research 16919 | -3/Research | Evolved 2 slots: Power x1, Propulsion x1 16921 | -3/Research | Loaded intel: 4 garrison access locations 17053 | -3/Research | Discovered new exit (range 22) 17237 | -3/Research | Discovered new exit (range 23) 17358 | -3/Research | Identified exit to Research 17502 | -3/Research | Discovered new exit (range 7) 17508 | -3/Research | Identified exit to Testing 17778 | -3/Research | System corruption reached 10% 17835 | -3/Research | Lost 9 parts (1p5n3u) 17838 | -3/Research | Cargo convoy interrupted 18069 | -3/Research | Lost 3 parts (1p1n1w) 18166 | -3/Research | Found Gamma Bomb Array 18688 | -3/Research | Lost 3 parts (1p1n1u) 19194 | -3/Research | Lost 5 parts (1p2n1u1w) 19213 | -3/Research | Spotted B-86 Titan 19345 | -3/Research | Entered another Research area 19345 | -2/Research | Warlord forces began assault on 0b10 19345 | -2/Research | Evolved 2 slots: Utility x2 19396 | -2/Research | Spotted B-90 Cyclops 19455 | -2/Research | Research machine network offline 19597 | -2/Research | Build established: Hacker-Gladiator 19802 | -2/Research | Crushed by falling debris 19802 | -2/Research | System corruption reached 10% 19824 | -2/Research | Spotted Striker 19860 | -2/Research | Lost 4 parts (1n3u) 19885 | -2/Research | Destroyed Striker 19927 | -2/Research | Lost 7 allies 20013 | -2/Research | Borebot progress halted 20096 | -2/Research | Borebot progress halted 20183 | -2/Research | Spotted Striker 20185 | -2/Research | Spotted Striker 20197 | -2/Research | Borebot progress halted 20226 | -2/Research | Build established: Hacker-Assassin 20244 | -2/Research | Lost 5 allies 20260 | -2/Research | Found Adv. Force Booster 20493 | -2/Research | Discovered new exit (range 16) 20494 | -2/Research | Met up with Warlord 20495 | -2/Research | Warlord invited to help at Command 20495 | -2/Research | Given Cave Seal Controls access code 20522 | -2/Research | Identified exit to Quarantine 20529 | -2/Research | Spotted Striker 20532 | -2/Research | Spotted Striker 20559 | -2/Research | Build established: Hacker-Gladiator 20596 | -2/Research | Lost 5 allies 20698 | -2/Research | Found Exp. Core Analyzer 21239 | -2/Research | Spotted Striker 21265 | -2/Research | Spotted Striker 21293 | -2/Research | Destroyed Striker 21320 | -2/Research | Spotted Executioner 21320 | -2/Research | Spotted Executioner 21351 | -2/Research | Lost 3 allies 21367 | -2/Research | Core integrity fell below 50% 21396 | -2/Research | Core integrity fell below 20% 21403 | -2/Research | Destroyed by H-88 Terminator with KE Penetrator Last Messages --------------- 21392_ Penetrated by Slug. 21393_ G-73 Enforcer destroyed. 21393_ Penetrated by Slug. 21393_ Impulse Thruster Array destroyed. 21394_ Acquired Cmb. Antigrav System. 21395_ ANNOUNCEMENT: Unaware assault squad dispatched in northeast quadrant. 21395_ Penetrated by Slug. 21395_ Slug penetrates Earth. 21395_ Penetrated by Slug. 21397_ Centrium Leg destroyed. 21397_ Penetrated by Slug. 21397_ Slug penetrates Earth. 21399_ Penetrated by Slug. 21399_ Adv. Signal Interpreter destroyed. 21399_ Slug penetrates Earth. 21400_ Penetrated by Slug. 21400_ Slug penetrates Wall. 21400_ Penetrated by Slug. 21403_ Slug penetrates Earth. Map ----- +----------------------------------------------------+ | "T" # % # #= *# #/#"""""#"#!% | | " " #= ###### # #% # ? # ! "# | | # !% ! ?? # !## # | | = ! # = ??" ## | | # !%= ??" ! ## # | | +%!%! ###?????# ## # | | = # %*%############# #######?##;! ### | | !" = # ! ] #??# #?##T ###;;;;"##+### | | #######"#% =# ! #??# ### %!! | | """ # # #??# # h !E [!= *% | | """ #%% # = """#??# # hh [%= | | """ ! " # """#??# # # E h;######### | | + + """#??# # ####+ | | ] ! # # #??# # # % # | | ! #% # #??# # =!% ! # | | # % # #??# # #] ! # "" | | # ############# # #] % " "" #""" | | ######### / ! "R"" #"T | | ###?????# ####### ##+ %!! ! """ #""" | | ??????# #?????# # = = ########### "" | | ??????# #?????# # = [%%= #????# | | ??????# #######+#;+# /!*! ] #????# | | ?????## ## [ ! #????##### | | ?????# # ! # %% % #????????? | | ###### # ] # #????????? | | + ! # =% @ #????????? | | # ] + ; * ########?????? | | /##+#### ; !!! ; #?????? | | # # !!! ;### #?????? | | ### ###% %!!M #?? # ! """#?????? | | ! =#?#!=# ;# ## #####?? ##% [ ""#?????? | | / #?#*=#? # #????? ? % *!R"#?????? | | ####+#####%!#### #+##????# #% """#?????? | | ##%%## = #????## #?????? | | ##=%## #?????# = #?????? | | ##=! ###???# # ########?????? | | ##%!! ##### ######???????? | | ##!= #"""""""" """"""""#???????? | | ##[%# ## # ######????????? | | = % [ #""""" """""#?????????? | | = [ %= ## ## ##?????????? | | # ##" " #??????????? | | # " > " #??????????? | | ! ! # ##"" "##??????????? | | # # ##" " " " " #??????????? | | # # #?##""""""""""" #??????????? | | # # #??## #### ######??????????? | | # ###??##???###???????????????? | | # # ### # #?????????????????????????? | | # = #?????????###?????????????? | +----------------------------------------------------+ Best States ------------- Heat Dissipation 73 Coolant Potential 120 Energy Generation 45 Energy Capacity 565 Matter Stores 300 Matter Capacity 300 Sight Range 24 Robot Scan Range 16 Terrain Scan Density 10 Jamming Range 12 Armor Coverage 225 Weapon Cycling 20 Melee Speed Boost 30 Phase Shifting 10 Evasion (%) 82 Targeting Accuracy 20 Melee Accuracy 12 Target Analysis 8 Core Analysis 8 Armor Integrity Analysis 40 Force Boost 40 Salvage Targeting 2 Offensive Hacking 22 Defensive Hacking 25 Item Schematics ----------------- Datajack | -10/Materials | Hacked Imp. Melee Analysis Suite | -7/Factory | Scanalyzed Imp. Carbon-fiber Leg | -7/Factory | Scanalyzed Great Axe | -7/Factory | Scanalyzed Actuator Array | -7/Factory | Scanalyzed Melee Analysis Suite | -7/Factory | Scanalyzed System Restoration Module | -7/Factory | Scanalyzed Reaction Control System | -7/Factory | Scanalyzed Hvy. Deuterium Engine | -7/Factory | Scanalyzed Adv. VSS Leg | -6/Factory | Hacked Combat Drone Bay | -6/Data Miner | Free Lgt. Regenerative Plating | -6/Data Miner | Free Cld. Gravmag System | -6/Data Miner | Free Exp. Heat Sink | -6/Data Miner | Free Tiamat Missile Launcher | -6/Data Miner | Free Myomer Leg | -6/Data Miner | Free Lrn. Sensor Array | -6/Data Miner | Free Matter Neutralizer | -6/Data Miner | Free Smartbomb Launcher | -6/Data Miner | Free Railgun | -6/Data Miner | Free Enh. Biometal Leg | -4/Factory | Scanalyzed Hvy. Plasma Cannon | -4/Factory | Scanalyzed Robot Schematics ------------------ None Fabricated ------------ Great Axe | x2 | -6/Factory Repaired ---------- Imp. Reaction Control System | 5% | -6/Factory Enh. Biometal Leg | 99% | -4/Factory | Broken Myomer Leg | 6% | -4/Factory Myomer Leg | 6% | -4/Factory Myomer Leg | 20% | -4/Factory Myomer Leg | 33% | -4/Factory Alien Tech Used ----------------- None Achievements -------------- Hehehe Challenges ------------ None Game ------ Seed LinearGodFalx Manual? 0 Play Time 06:42:56 Cumulative 622.3 hours Start 2024.12.29 @ 16:17:07 End 2025.01.01 @ 22:28:20 Sessions 19 Manual Loads 0 Difficulty Rogue Special Mode None Game No. 111 Rogue 94 Adventurer 17 Explorer 0 Win Type - Total 3 Types 3/0/0/0/0/0/0/0/0 Lore% 37 Gallery% 64 Achievement% 58 Wizard Run 0 Options --------- Layout 2 ASCII 0 Keyboard 1 Movement Vi Keybinds 0 Fullscreen 1 Font 18/X11 Map View 76x59 Zoom Use 0% Tactical HUD 1 Map Filters NONE Filters NONE Steam 1 RUN: 7e95b140-ca7f-49e5-a54c-ae9600cda587